bitfinex/quotes_SOLUSD_20250401
["timestamp","ask_amount","ask_price","bid_price","bid_amount"]
[1743507318430,7.9008,127.59,127.54,225.8]
[1743507318431,11.50851514,127.56,127.55,6.88]
[1743507318813,11.50851514,127.57,127.55,6.88]
[1743507320918,19.34701514,127.58,127.55,6.88]
[1743507321537,0.063,127.59,127.55,6.88]
[1743507321538,19.40941514,127.59,127.56,225.8]
[1743507323036,11.50851514,127.58,127.56,225.8]
[1743507324234,11.50851514,127.57,127.56,225.8]
[1743507324924,19.34731514,127.57,127.56,232.68]
[1743507325126,19.34691514,127.58,127.56,232.68]
[1743507325740,7.8384,127.58,127.56,232.68]
[1743507325935,19.40931514,127.59,127.56,232.68]
[1743507326117,0.063,127.59,127.56,240.519]
[1743507326937,0.063,127.59,127.56,232.68]
[1743507327332,0.063,127.59,127.56,240.5193]
[1743507330053,0.063,127.59,127.56,232.68]
[1743507330751,0.063,127.59,127.56,240.5193]
[1743507331746,0.063,127.59,127.56,232.68]
[1743507332054,11.57151514,127.59,127.56,232.68]
[1743507332238,11.50851514,127.58,127.56,232.68]
[1743507332633,11.57151514,127.59,127.56,232.68]
[1743507334560,19.40951514,127.59,127.56,232.68]
[1743507335652,19.40951514,127.59,127.55,0.03]
[1743507335857,19.40951514,127.59,127.57,225.76]
[1743507336837,7.901,127.59,127.57,225.76]
[1743507337041,19.40951514,127.59,127.57,225.76]
[1743507337779,7.4262668,127.59,127.57,225.76]
[1743507338073,0.063,127.59,127.57,225.76]
[1743507338453,0.063,127.59,127.57,233.5988]
[1743507339163,0.063,127.59,127.57,225.76]
[1743507339361,0.063,127.59,127.57,233.5987]
[1743507339891,0.063,127.59,127.57,235.1833]
[1743507343054,0.063,127.59,127.57,225.76]
[1743507343274,7.3632668,127.58,127.57,225.76]
[1743507343485,7.3632668,127.58,127.57,232.64]
[1743507343787,7.4262668,127.59,127.57,232.64]
[1743507345074,0.063,127.59,127.57,232.64]
[1743507345682,7.4262668,127.59,127.57,232.64]
[1743507346570,0.063,127.59,127.57,232.64]
[1743507346770,7.4262668,127.59,127.57,232.64]
[1743507347466,15.2642668,127.59,127.57,232.64]
[1743507347660,35.2642668,127.59,127.57,232.64]
[1743507348878,7.3632668,127.58,127.57,225.76]
[1743507349064,7.3632668,127.58,127.57,232.64]
[1743507350980,15.2640668,127.59,127.57,232.64]
[1743507351560,15.2638668,127.59,127.57,232.64]
[1743507352870,15.2638668,127.59,127.58,225.76]
[1743507355786,33.91351566,127.59,127.58,225.76]
[1743507355988,33.91351566,127.59,127.58,232.64]
[1743507356210,34.1978388,127.59,127.58,232.64]
[1743507357190,34.05567723,127.59,127.58,232.64]
[1743507357520,33.91351566,127.59,127.58,232.64]
[1743507358007,15.2638668,127.59,127.58,232.64]
[1743507358787,15.2638668,127.59,127.58,232.66]
[1743507361809,15.2638668,127.59,127.58,225.78]
[1743507361810,35.00002837,127.59,127.58,225.78]
[1743507362105,53.64967723,127.59,127.55,0.03]
[1743507362284,7.3632668,127.56,127.55,0.03]
[1743507363080,7.3632668,127.56,127.55,6.95]
[1743507364201,15.2026668,127.56,127.55,6.95]
[1743507364391,7.8391,127.57,127.55,6.95]
[1743507364585,7.8383,127.58,127.55,6.95]
[1743507364791,18.71264886,127.59,127.55,6.95]
[1743507364792,7.4262668,127.59,127.55,6.95]
[1743507364977,0.063,127.59,127.55,14.79]
[1743507366784,0.063,127.59,127.56,225.94216157]
[1743507368203,0.063,127.59,127.57,7.8388]
[1743507370495,0.063,127.59,127.58,1.5722]
[1743507371299,0.063,127.59,127.58,1.71436157]
[1743507372497,0.063,127.59,127.58,9.55256157]
[1743507372682,0.063,127.59,127.58,28.344372]
[1743507372885,0.063,127.64,127.61,0.28432314]
[1743507373091,0.063,127.64,127.62,6.92]
[1743507374897,0.063,127.64,127.62,14.7557]
[1743507375201,0.063,127.64,127.62,6.92]
[1743507375999,0.063,127.64,127.62,14.7554]
[1743507376381,0.063,127.64,127.62,6.92]
[1743507376907,38.71264886,127.64,127.63,225.7]
[1743507377092,46.07591566,127.64,127.63,232.62]
[1743507377615,27.4262668,127.64,127.63,232.62]
[1743507377798,0.063,127.64,127.63,232.62]
[1743507378104,0.063,127.64,127.63,232.90432314]
[1743507378787,0.063,127.64,127.63,240.73942314]
[1743507379705,0.063,127.64,127.63,19.02618647]
[1743507380111,0.063,127.64,127.63,7.06216157]
[1743507380614,0.063,127.64,127.63,6.92]
[1743507380911,7.4262668,127.64,127.63,6.94]
[1743507381206,26.07591566,127.64,127.57,9.61866157]
[1743507381392,7.3632668,127.61,127.58,6.94]
[1743507381797,7.3632668,127.6,127.58,6.94]
[1743507382800,15.2006668,127.6,127.58,6.94]
[1743507383711,19.34135563,127.6,127.58,6.94]
[1743507384089,19.34135563,127.6,127.55,0.03]
[1743507384285,19.34135563,127.6,127.56,6.96]
[1743507385003,11.50395563,127.6,127.56,6.96]
[1743507385204,7.8363,127.61,127.56,6.96]
[1743507385398,11.50395563,127.6,127.56,6.96]
[1743507386612,11.50395563,127.6,127.56,14.7994]
[1743507386811,11.50395563,127.6,127.57,225.7]
[1743507386997,19.34025563,127.61,127.57,225.7]
[1743507388626,7.8352,127.63,127.57,233.5386]
[1743507388827,19.33915563,127.63,127.57,233.5386]
[1743507389601,7.8977,127.64,127.58,0.14216157]
[1743507389803,0.063,127.64,127.58,0.14216157]
[1743507390132,11.50395563,127.63,127.59,7.8376]
[1743507390430,11.50395563,127.63,127.6,6.94]
[1743507391101,7.8975,127.64,127.6,6.94]
[1743507391102,11.50395563,127.62,127.6,6.94]
[1743507391422,11.50395563,127.61,127.57,225.7]
[1743507391619,11.50395563,127.61,127.58,6.94]
[1743507392110,19.34075563,127.61,127.58,6.94]
[1743507393833,11.50395563,127.6,127.58,6.94]
[1743507394526,19.34125563,127.6,127.58,6.94]
[1743507394723,11.50395563,127.59,127.57,225.7]
[1743507395033,11.50395563,127.59,127.58,6.94]
[1743507395605,11.50395563,127.59,127.58,6.97]
[1743507396031,0.063,127.61,127.58,6.97]
[1743507396828,0.063,127.61,127.58,14.8079]
[1743507398829,0.063,127.61,127.6,1.89282314]
[1743507399012,0.063,127.64,127.61,0.14216157]
[1743507399205,0.063,127.64,127.62,6.96]
[1743507400807,0.063,127.64,127.63,7.8351]
[1743507402518,0.063,127.64,127.63,28.11942314]
[1743507406734,0.063,127.64,127.63,253.75942314]
[1743507408722,0.063,127.64,127.63,28.11942314]
[1743507415035,0.063,127.69,127.66,0.14216157]
[1743507415240,0.063,127.69,127.67,6.92]
[1743507416716,11.56695563,127.69,127.68,225.6]
[1743507417033,19.39835563,127.69,127.68,225.6]
[1743507417444,11.56695563,127.69,127.68,225.6]
[1743507417941,0.063,127.69,127.68,225.6]
[1743507421024,0.063,127.69,127.68,233.432]
[1743507422343,0.063,127.69,127.68,225.6]
[1743507422725,0.063,127.69,127.68,233.57416157]
[1743507423244,0.063,127.69,127.68,7.97416157]
[1743507426748,0.063,127.69,127.68,233.53416157]
[1743507429545,0.063,127.69,127.66,20.0]
[1743507429721,0.063,127.69,127.67,6.92]
[1743507429722,7.3468572,127.68,127.67,6.92]
[1743507430352,7.3468572,127.68,127.63,0.14216157]
[1743507430648,8.1341,127.67,127.64,6.92]
[1743507431030,7.8333,127.66,127.64,6.92]
[1743507431922,11.49029914,127.65,127.61,0.03]
[1743507432146,7.8333,127.66,127.61,0.03]
[1743507432147,11.49029914,127.64,127.61,0.03]
[1743507432326,11.49029914,127.64,127.62,6.92]
[1743507432732,11.49029914,127.63,127.61,0.03]
[1743507432941,7.8357,127.62,127.61,0.03]
[1743507433245,7.8357,127.62,127.61,6.97]
[1743507433432,37.975648,127.62,127.61,6.97]
[1743507433751,44.384248,127.62,127.61,6.97]
[1743507435640,55.87454714,127.62,127.61,6.97]
[1743507435839,57.39044714,127.62,127.61,6.97]
[1743507436053,45.900148,127.62,127.61,6.97]
[1743507436847,45.900148,127.62,127.61,232.61]
[1743507442546,76.97984714,127.62,127.6,225.7]
[1743507442761,11.49029914,127.61,127.6,225.7]
[1743507443866,11.49029914,127.61,127.6,232.64]
[1743507444065,30.139948,127.61,127.6,232.64]
[1743507444567,37.976248,127.61,127.6,232.64]
[1743507445454,20.0,127.59,127.58,225.75]
[1743507445746,31.49029914,127.59,127.58,225.75]
[1743507446254,31.49029914,127.59,127.55,0.03]
[1743507446255,50.139948,127.59,127.55,0.03]
[1743507446453,11.49029914,127.56,127.55,0.03]
[1743507446764,19.32969914,127.56,127.55,232.71]
[1743507447560,55.47994714,127.56,127.55,225.75]
[1743507447765,57.03834714,127.56,127.55,232.77]
[1743507454357,45.548048,127.56,127.55,232.77]
[1743507454555,25.33999914,127.56,127.55,232.77]
[1743507454865,19.32969914,127.56,127.55,232.77]
[1743507458371,30.81999828,127.56,127.55,232.77]
[1743507458571,49.46964714,127.56,127.55,232.77]
[1743507458872,49.61180871,127.56,127.55,232.77]
[1743507459059,49.61180871,127.56,127.55,232.79]
[1743507459261,69.21040871,127.56,127.53,0.03]
[1743507459469,31.49029914,127.54,127.53,0.03]
[1743507460250,50.139948,127.54,127.53,0.03]
[1743507460475,50.139948,127.54,127.53,7.07]
[1743507460776,57.980548,127.54,127.53,7.07]
[1743507461069,39.33089914,127.54,127.53,7.07]
[1743507462754,57.980548,127.54,127.53,7.07]
[1743507464271,18.64964886,127.53,127.52,0.03]
[1743507464469,30.139948,127.53,127.52,7.09]
[1743507464661,30.139948,127.53,127.51,225.84]
[1743507464871,37.981848,127.52,127.51,225.84]
[1743507465176,20.0,127.49,127.48,225.89]
[1743507465389,50.139948,127.49,127.48,225.89]
[1743507465967,50.139948,127.49,127.48,232.97]
[1743507466374,31.49029914,127.49,127.48,232.97]
[1743507467059,39.33399914,127.49,127.48,232.97]
[1743507470275,27.8437,127.49,127.48,232.97]
[1743507470470,39.33399914,127.49,127.48,232.97]
[1743507472583,31.49029914,127.49,127.48,232.97]
[1743507472959,20.0,127.49,127.48,232.97]
[1743507473166,39.33399914,127.49,127.48,232.97]
[1743507473782,11.49029914,127.49,127.48,232.97]
[1743507473988,19.33279914,127.51,127.48,232.97]
[1743507474564,7.842,127.52,127.48,240.8143]
[1743507474778,7.842,127.52,127.48,232.97]
[1743507474978,19.33229914,127.52,127.48,232.97]
[1743507475179,11.49029914,127.51,127.48,232.97]
[1743507475678,15.21505662,127.51,127.48,232.97]
[1743507476388,7.37245662,127.51,127.48,232.97]
[1743507476686,15.21505662,127.51,127.48,232.97]
[1743507476866,7.37245662,127.51,127.48,232.97]
[1743507477066,15.21475662,127.52,127.48,232.97]
[1743507477493,7.37245662,127.53,127.48,240.8143]
[1743507477678,15.21435662,127.52,127.48,240.8143]
[1743507478478,7.8419,127.52,127.48,240.8143]
[1743507478794,7.8406,127.54,127.48,240.8143]
[1743507478977,7.37245662,127.52,127.48,240.8143]
[1743507479295,7.37245662,127.53,127.48,240.8143]
[1743507479482,15.21305662,127.54,127.48,240.8143]
[1743507479676,15.21305662,127.54,127.49,1.6435]
[1743507480078,7.37245662,127.55,127.49,1.6435]
[1743507480575,0.063,127.52,127.49,1.6435]
[1743507480791,0.063,127.52,127.5,7.8431]
[1743507482089,7.43545662,127.52,127.49,1.6435]
[1743507482774,0.063,127.52,127.49,1.6435]
[1743507482975,7.43545662,127.52,127.49,1.6435]
[1743507483176,0.063,127.52,127.49,1.6435]
[1743507483497,7.43545662,127.52,127.48,232.97]
[1743507484088,0.063,127.52,127.48,232.97]
[1743507484274,7.43545662,127.52,127.48,232.97]
[1743507484876,7.37245662,127.51,127.48,232.97]
[1743507485283,7.37245662,127.5,127.48,225.89]
[1743507485485,7.37245662,127.5,127.49,7.06]
[1743507485793,11.52268223,127.5,127.49,7.06]
[1743507486398,11.52268223,127.5,127.48,225.89]
[1743507486594,11.52268223,127.5,127.49,7.06]
[1743507486798,19.36578223,127.5,127.49,7.06]
[1743507489707,7.8431,127.5,127.49,7.06]
[1743507492805,0.063,127.52,127.49,21.0865]
[1743507495096,0.063,127.52,127.49,7.09]
[1743507495882,0.063,127.52,127.49,14.9337]
[1743507498302,0.063,127.52,127.49,0.17216157]
[1743507498619,11.52268223,127.51,127.5,7.0]
[1743507498907,0.063,127.52,127.5,7.0]
[1743507498908,11.58568223,127.52,127.5,7.0]
[1743507499086,0.063,127.52,127.5,7.0]
[1743507502520,11.58568223,127.52,127.5,7.0]
[1743507502989,0.063,127.52,127.5,7.0]
[1743507503590,11.58568223,127.52,127.5,7.0]
[1743507504105,11.58568223,127.52,127.49,0.03]
[1743507504291,11.58568223,127.52,127.51,7.02]
[1743507505001,11.58568223,127.52,127.49,0.03]
[1743507505307,18.71264886,127.52,127.5,7.02]
[1743507505694,7.8425,127.51,127.5,7.02]
[1743507506413,15.2166249,127.51,127.5,7.02]
[1743507508795,7.8425,127.51,127.5,7.02]
[1743507509000,15.2166249,127.51,127.5,7.02]
[1743507510120,15.2166249,127.51,127.5,232.92]
[1743507510321,7.8425,127.51,127.5,232.92]
[1743507510513,15.2166249,127.51,127.5,232.92]
[1743507513627,0.063,127.52,127.5,232.92]
[1743507513831,0.063,127.52,127.5,240.7631]
[1743507514033,0.063,127.52,127.51,0.14216157]
[1743507514605,0.063,127.52,127.51,18.933972]
[1743507514932,7.8658,127.58,127.54,0.28432314]
[1743507514933,0.063,127.58,127.54,0.28432314]
[1743507515231,0.063,127.58,127.55,7.02]
[1743507515992,0.063,127.58,127.56,7.8394]
[1743507517407,0.063,127.58,127.55,14.8597]
[1743507520923,0.063,127.58,127.55,7.02]
[1743507522504,11.5665925,127.58,127.55,7.02]
[1743507522704,11.5665925,127.58,127.54,7.8405]
[1743507522917,19.4047925,127.58,127.55,7.04]
[1743507523120,11.5665925,127.58,127.55,14.8799]
[1743507523318,0.063,127.58,127.55,14.8799]
[1743507525031,0.063,127.58,127.55,34.48]
[1743507526435,0.063,127.58,127.56,0.14216157]
[1743507527032,0.063,127.58,127.57,7.8388]
[1743507527731,0.063,127.58,127.57,233.6388]
[1743507527929,0.063,127.58,127.57,233.78096157]
[1743507532451,0.063,127.58,127.57,237.62842735]
[1743507533850,0.063,127.58,127.57,233.78096157]
[1743507536529,0.063,127.58,127.57,225.8]
[1743507536836,0.063,127.58,127.57,232.82]
[1743507540547,0.063,127.58,127.57,225.8]
[1743507540754,0.063,127.58,127.57,232.8]
[1743507541838,0.063,127.58,127.57,225.8]
[1743507542053,0.063,127.58,127.57,232.8]
[1743507542553,7.42589317,127.58,127.57,225.8]
[1743507542736,7.42589317,127.58,127.57,232.8]
[1743507543854,15.26409317,127.58,127.57,232.8]
[1743507544462,15.26409317,127.58,127.57,232.82]
[1743507544661,15.26409317,127.58,127.57,225.8]
[1743507544865,15.26409317,127.58,127.57,232.8]
[1743507547861,15.26409317,127.58,127.57,225.8]
[1743507548062,33.91374203,127.58,127.57,225.8]
[1743507548353,33.91374203,127.58,127.57,232.8]
[1743507549255,33.91374203,127.58,127.57,225.8]
[1743507549457,20.0,127.55,127.54,225.78]
[1743507549643,46.01254203,127.55,127.54,232.78]
[1743507550161,53.85254203,127.55,127.54,232.78]
[1743507553166,18.64964886,127.54,127.52,225.83]
[1743507553465,7.36289317,127.53,127.52,225.83]
[1743507554352,7.36289317,127.53,127.52,232.83]
[1743507555443,15.20409317,127.53,127.52,232.83]
[1743507558874,33.85374203,127.53,127.52,225.83]
[1743507559066,33.85374203,127.53,127.52,232.81]
[1743507560578,20.0,127.51,127.5,225.91]
[1743507560768,46.01254203,127.51,127.5,225.91]
[1743507560965,46.01254203,127.51,127.5,232.87]
[1743507561357,46.01254203,127.51,127.5,225.91]
[1743507561559,53.85504203,127.51,127.5,232.87]
[1743507562665,53.85504203,127.51,127.5,225.91]
[1743507562869,53.85504203,127.51,127.5,232.87]
[1743507571168,0.14216157,127.5,127.49,0.03]
[1743507571477,55.74843785,127.5,127.49,6.9801]
[1743507572384,63.59153785,127.5,127.49,6.9801]
[1743507574299,63.59153785,127.5,127.48,0.03]
[1743507574589,26.29686517,127.49,127.48,0.03]
[1743507574765,38.64964886,127.47,127.46,0.03]
[1743507574965,46.01254203,127.47,127.46,0.03]
[1743507575578,46.01254203,127.47,127.46,6.99]
[1743507575988,46.01254203,127.47,127.46,0.03]
[1743507576180,46.01254203,127.47,127.46,6.99]
[1743507576886,53.85744203,127.47,127.46,0.03]
[1743507577089,53.85744203,127.47,127.46,6.99]
[1743507577391,53.85744203,127.47,127.46,0.03]
[1743507577585,53.9996036,127.47,127.46,6.99]
[1743507581384,53.85744203,127.47,127.46,6.99]
[1743507582294,18.64964886,127.46,127.45,225.95]
[1743507582473,26.01254203,127.46,127.45,225.95]
[1743507582887,26.1547036,127.46,127.45,225.95]
[1743507583291,34.0002036,127.46,127.45,225.95]
[1743507583492,34.14236517,127.46,127.43,0.03]
[1743507583803,36.95662742,127.45,127.44,0.0001]
[1743507583978,55.46411471,127.45,127.43,226.03]
[1743507584295,36.95662742,127.44,127.43,226.03]
[1743507585080,18.64964886,127.43,127.41,226.0]
[1743507585280,26.01254203,127.43,127.41,226.0]
[1743507585583,26.01254203,127.43,127.42,7.17]
[1743507585978,107.71254203,127.43,127.41,226.0]
[1743507586178,18.933972,127.41,127.4,0.0001]
[1743507586397,0.14216157,127.4,127.37,0.03]
[1743507586584,27.50505474,127.4,127.37,0.03]
[1743507586784,27.50505474,127.4,127.37,226.05]
[1743507587189,35.35425474,127.4,127.37,226.05]
[1743507587594,7.36289317,127.38,127.37,226.05]
[1743507587978,7.36289317,127.38,127.37,233.19]
[1743507588295,26.01254203,127.38,127.37,233.19]
[1743507588598,26.1547036,127.38,127.37,233.19]
[1743507588781,55.60627628,127.38,127.37,233.19]
[1743507589181,55.60627628,127.38,127.32,0.03]
[1743507589182,18.933972,127.37,127.32,0.03]
[1743507589380,18.64964886,127.33,127.32,0.03]
[1743507589582,0.14216157,127.32,127.31,2.7326071]
[1743507589794,0.14216157,127.31,127.3,226.08]
[1743507589986,7.50505474,127.31,127.3,226.08]
[1743507591087,7.8573,127.27,127.24,1.6283]
[1743507591287,7.8548,127.31,127.25,7.12]
[1743507591487,7.36289317,127.28,127.26,7.12]
[1743507591715,7.36289317,127.29,127.26,12.7407096]
[1743507592012,7.36289317,127.27,127.26,12.7407096]
[1743507592304,7.36289317,127.27,127.26,5.6207096]
[1743507592510,7.36289317,127.27,127.26,12.7607096]
[1743507593179,41.37489677,127.27,127.26,5.6207096]
[1743507593402,38.64964886,127.24,127.23,226.08]
[1743507593694,46.1547036,127.24,127.23,226.08]
[1743507593899,46.01254203,127.24,127.23,226.08]
[1743507594199,27.36289317,127.24,127.23,226.08]
[1743507594399,7.8554,127.3,127.23,226.08]
[1743507594603,7.36289317,127.29,127.24,1.6045]
[1743507594779,7.36289317,127.28,127.23,226.08]
[1743507594980,7.8554,127.3,127.24,7.74]
[1743507594981,7.36289317,127.27,127.24,7.74]
[1743507595196,18.64964886,127.26,127.23,226.08]
[1743507595383,7.36289317,127.26,127.24,7.74]
[1743507595885,7.36289317,127.27,127.24,7.74]
[1743507597107,20.0,127.25,127.23,226.08]
[1743507597406,7.36289317,127.26,127.24,7.74]
[1743507597599,27.4961,127.29,127.24,7.74]
[1743507597600,7.36289317,127.27,127.24,7.74]
[1743507598787,7.36289317,127.26,127.24,7.74]
[1743507599293,15.22089317,127.26,127.24,7.74]
[1743507599481,7.36289317,127.25,127.24,7.74]
[1743507599686,20.0,127.24,127.23,226.08]
[1743507599886,7.36289317,127.24,127.23,233.86]
[1743507601409,7.36289317,127.25,127.23,233.86]
[1743507601721,15.22149317,127.25,127.23,233.86]
[1743507601908,15.22149317,127.25,127.24,0.03]
[1743507602511,7.36289317,127.25,127.24,0.03]
[1743507603043,7.8566,127.28,127.24,0.03]
[1743507603327,7.36289317,127.26,127.24,0.03]
[1743507603730,7.8576,127.27,127.24,0.03]
[1743507603896,15.21969317,127.28,127.24,0.03]
[1743507604528,7.36289317,127.28,127.24,0.03]
[1743507604712,15.21979317,127.28,127.24,0.03]
[1743507604916,7.8569,127.28,127.24,0.03]
[1743507605110,7.36289317,127.28,127.24,0.03]
[1743507605308,27.36289317,127.28,127.24,0.03]
[1743507605515,7.36289317,127.28,127.24,0.03]
[1743507606201,35.21979317,127.28,127.24,0.03]
[1743507606537,7.36289317,127.27,127.24,0.03]
[1743507606827,27.36289317,127.28,127.24,0.03]
[1743507607404,7.36289317,127.28,127.24,0.03]
[1743507607604,7.8557,127.3,127.24,0.17216157]
[1743507607917,7.36289317,127.29,127.25,1.6505]
[1743507608238,7.36289317,127.26,127.24,0.03]
[1743507608535,7.36289317,127.25,127.24,0.03]
[1743507608696,18.64964886,127.29,127.24,0.03]
[1743507608697,7.36289317,127.26,127.24,0.03]
[1743507608895,18.64964886,127.29,127.24,0.03]
[1743507609245,7.36289317,127.28,127.24,0.03]
[1743507609425,7.36289317,127.29,127.25,7.8585]
[1743507610028,7.36289317,127.28,127.25,7.8585]
[1743507611338,7.36289317,127.29,127.25,7.8585]
[1743507612131,7.8548,127.31,127.25,7.8585]
[1743507612429,7.36289317,127.29,127.25,7.8585]
[1743507612930,7.36289317,127.28,127.24,8.03106157]
[1743507613133,7.36289317,127.28,127.24,0.03]
[1743507613312,7.36289317,127.27,127.24,0.03]
[1743507613818,15.21989317,127.28,127.24,0.03]
[1743507614014,15.28289317,127.28,127.24,0.03]
[1743507616031,7.36289317,127.27,127.25,7.72]
[1743507616455,7.36289317,127.26,127.24,226.35]
[1743507616731,7.36289317,127.25,127.24,226.35]
[1743507616914,7.36289317,127.25,127.24,234.07]
[1743507618036,15.22139317,127.25,127.24,234.07]
[1743507618238,33.87104203,127.25,127.24,234.07]
[1743507618633,34.0132036,127.25,127.24,226.35]
[1743507618932,20.0,127.21,127.17,1.5095]
[1743507619111,27.36289317,127.21,127.18,226.34]
[1743507619322,27.36289317,127.21,127.19,7.72]
[1743507619834,7.36289317,127.2,127.18,226.34]
[1743507620037,20.0,127.21,127.19,7.72]
[1743507620233,15.22449317,127.2,127.19,7.72]
[1743507620625,7.36289317,127.2,127.19,7.72]
[1743507621333,27.8612,127.21,127.19,7.72]
[1743507621732,7.8612,127.21,127.19,7.72]
[1743507622340,7.36289317,127.2,127.18,226.34]
[1743507622538,7.36289317,127.2,127.19,7.76]
[1743507623437,7.8591,127.24,127.19,7.76]
[1743507623641,7.36289317,127.23,127.19,7.76]
[1743507623823,7.36289317,127.23,127.19,9.3673]
[1743507624017,7.8587,127.25,127.19,9.3673]
[1743507624212,15.22159317,127.25,127.19,9.3673]
[1743507625940,15.22159317,127.25,127.19,9.3973]
[1743507626118,7.36289317,127.24,127.19,9.3973]
[1743507626320,7.36289317,127.23,127.19,9.3973]
[1743507626521,7.36289317,127.23,127.2,7.78]
[1743507627344,7.36289317,127.24,127.2,7.78]
[1743507628136,7.36289317,127.23,127.2,7.78]
[1743507628446,15.22319317,127.22,127.2,7.78]
[1743507628823,7.36289317,127.21,127.2,7.78]
[1743507630045,15.22389317,127.21,127.2,7.78]
[1743507630229,15.22389317,127.21,127.2,7.76]
[1743507631331,63.32511471,127.21,127.2,7.82]
[1743507631737,38.09071477,127.21,127.2,7.82]
[1743507633252,19.44106591,127.21,127.2,7.82]
[1743507636751,19.44106591,127.21,127.2,7.86]
[1743507637552,38.09071477,127.21,127.2,7.84]
[1743507639440,18.79181043,127.2,127.19,0.03]
[1743507639638,41.95194225,127.2,127.19,7.89]
[1743507640932,7.861,127.21,127.19,7.89]
[1743507641140,11.58006591,127.2,127.19,7.89]
[1743507641327,41.80978068,127.2,127.19,7.89]
[1743507643150,49.67138068,127.2,127.19,7.89]
[1743507643739,38.09131477,127.2,127.19,7.89]
[1743507643939,49.67138068,127.2,127.19,7.89]
[1743507644354,7.8616,127.2,127.19,7.89]
[1743507644561,11.58006591,127.2,127.19,226.48]
[1743507645836,11.58006591,127.2,127.19,234.4]
[1743507648743,7.8606,127.22,127.19,234.4]
[1743507649048,11.58006591,127.21,127.19,234.4]
[1743507650541,7.8606,127.22,127.19,234.4]
[1743507650754,11.58006591,127.21,127.19,234.4]
[1743507651262,19.44046591,127.22,127.19,234.4]
[1743507651558,11.58006591,127.22,127.19,242.262]
[1743507651858,7.9224,127.24,127.19,242.262]
[1743507652161,0.063,127.21,127.19,234.4]
[1743507653161,0.063,127.21,127.19,242.2622]
[1743507653943,0.063,127.21,127.19,234.4]
[1743507654146,0.063,127.21,127.19,242.2622]
[1743507654345,0.063,127.21,127.19,234.4]
[1743507655064,0.063,127.21,127.19,242.262]
[1743507655539,0.063,127.21,127.19,234.4]
[1743507657064,0.063,127.21,127.19,242.2621]
[1743507657257,0.063,127.21,127.2,38.933972]
[1743507657455,0.063,127.24,127.23,0.28432314]
[1743507657966,0.063,127.24,127.23,8.14402314]
[1743507659253,0.063,127.24,127.23,28.399272]
[1743507663267,0.063,127.24,127.23,1.6056]
[1743507663452,0.063,127.24,127.23,7.84]
[1743507666753,0.063,127.24,127.23,234.2]
[1743507667848,0.063,127.24,127.22,7.8603]
[1743507668166,0.063,127.24,127.23,234.16]
[1743507668370,19.04069513,127.26,127.23,234.16]
[1743507668962,11.18279513,127.26,127.23,234.16]
[1743507669957,7.8581,127.26,127.23,234.16]
[1743507671066,19.41429513,127.27,127.23,234.16]
[1743507671275,19.41429513,127.27,127.23,242.0197]
[1743507671472,0.063,127.28,127.23,242.0197]
[1743507671681,0.063,127.28,127.23,261.6691]
[1743507674980,11.61979513,127.28,127.23,242.0197]
[1743507675680,11.55679513,127.27,127.23,226.34]
[1743507675886,11.55679513,127.25,127.23,226.34]